fUSD/lending_fUSD_20251206
["ID","MTS","AMOUNT","RATE_DAILY","PERIOD"]
[396596616,1765065075083,-241.979441,0.00016986,2]
[396596617,1765065075094,-241.979432,0.00016986,2]
[396596618,1765065075104,-500.0,0.00016986,2]
[396596619,1765065075114,-541.92,0.00016986,2]
[396596620,1765065075124,-2348.53,0.00016986,2]
[396596621,1765065075133,-2252.48,0.00016986,2]
[396596622,1765065075142,-151.0,0.00016986,2]
[396596623,1765065075151,-151.0,0.00016986,2]
[396596624,1765065075162,-500.0,0.00016986,2]
[396596625,1765065075172,-151.0,0.00016986,2]
[396596626,1765065075182,-151.0,0.00016986,2]
[396596627,1765065075191,-151.0,0.00016986,2]
[396596628,1765065075202,-151.0,0.00016986,2]
[396596629,1765065075212,-500.0,0.00016986,2]
[396596630,1765065075222,-607.65,0.00016986,2]
[396596631,1765065075232,-151.0,0.00016986,2]
[396596632,1765065075241,-636.79,0.00016986,2]
[396596633,1765065075251,-923.62,0.00016986,2]
[396596634,1765065075260,-2437.19,0.00016986,2]
[396596635,1765065075272,-151.0,0.00016986,2]
[396596636,1765065075282,-500.0,0.00016986,2]
[396596637,1765065075297,-846.737984,0.00016986,2]
[396596638,1765065075307,-652.77,0.00016986,2]
[396596639,1765065075316,-846.737984,0.00016986,2]
[396596640,1765065075325,-556.83,0.00016986,2]
[396596641,1765065075335,-2556.04,0.00016986,2]
[396596642,1765065075344,-846.737984,0.00016986,2]
[396596643,1765065075353,-846.737984,0.00016986,2]
[396596644,1765065075363,-500.0,0.00016986,2]
[396596645,1765065075373,-500.0,0.00016986,2]
[396596646,1765065075383,-846.737984,0.00016986,2]
[396596647,1765065075394,-846.737984,0.00016986,2]
[396596648,1765065075404,-628.08,0.00016986,2]
[396596649,1765065075414,-151.0,0.00016986,2]
[396596650,1765065075424,-846.737984,0.00016986,2]
[396596651,1765065075434,-151.0,0.00016986,2]
[396596652,1765065075444,-846.737987,0.00016986,2]
[396596653,1765065075454,-151.0,0.00016986,2]
[396596654,1765065075463,-500.0,0.00016986,2]
[396596655,1765065075473,-309.813134,0.00016986,2]
[396596656,1765065075483,-151.0,0.00016986,2]
[396596657,1765065075493,-309.813134,0.00016986,2]
[396596658,1765065075502,-309.813134,0.00016986,2]
[396596659,1765065075512,-151.0,0.00016986,2]
[396596660,1765065075522,-309.813134,0.00016986,2]
[396596661,1765065075531,-151.0,0.00016986,2]
[396596662,1765065075540,-500.0,0.00016986,2]
[396596663,1765065075549,-500.0,0.00016986,2]
[396596664,1765065075558,-500.0,0.00016986,2]
[396596665,1765065075567,-309.813134,0.00016986,2]
[396596666,1765065075576,-2331.93,0.00016986,2]
[396596667,1765065075586,-309.813134,0.00016986,2]
[396596668,1765065075595,-533.03261765,0.00016986,2]
[396596669,1765065075604,-8739.62,0.00016986,2]
[396596670,1765065075614,-309.813134,0.00016986,2]
[396596671,1765065075623,-309.813131,0.00016986,2]
[396596672,1765065075633,-500.0,0.00016986,2]
[396596673,1765065075642,-500.0,0.00016986,2]
[396596674,1765065075651,-924.99,0.00016986,2]
[396596675,1765065075660,-548.7,0.00016986,2]
[396596676,1765065075669,-500.0,0.00016986,2]
[396596677,1765065075682,-2150.28,0.00016986,2]
[396596678,1765065075692,-3296.61,0.00016986,2]
[396596679,1765065075703,-564.2,0.00016986,2]
[396596680,1765065075712,-175.2341061,0.00016986,2]
[396596681,1765065075723,-500.0,0.00016986,2]
[396596682,1765065075732,-151.0,0.00016986,2]
[396596683,1765065075741,-151.0,0.00016986,2]
[396596684,1765065075750,-500.0,0.00016986,2]
[396596685,1765065075760,-500.0,0.00016986,2]
[396596686,1765065075769,-151.0,0.00016986,2]
[396596687,1765065075778,-151.0,0.00016986,2]
[396596688,1765065075788,-582.25,0.00016986,2]
[396596689,1765065075798,-151.0,0.00016986,2]
[396596690,1765065075810,-744.03,0.00016986,2]
[396596691,1765065075819,-151.0,0.00016986,2]
[396596692,1765065075829,-500.0,0.00016986,2]
[396596693,1765065075838,-2478.43,0.00016986,2]
[396596694,1765065075847,-151.0,0.00016986,2]
[396596695,1765065075857,-151.0,0.00016986,2]
[396596696,1765065075868,-500.0,0.00016986,2]
[396596697,1765065075879,-610.11,0.00016986,2]
[396596698,1765065075889,-500.0,0.00016986,2]
[396596699,1765065075901,-675.5,0.00016986,2]
[396596700,1765065075912,-500.0,0.00016986,2]
[396596701,1765065075923,-508.68,0.00016986,2]
[396596702,1765065075932,-500.0,0.00016986,2]
[396596703,1765065075942,-726.09,0.00016986,2]
[396596704,1765065075952,-500.0,0.00016986,2]
[396596705,1765065075961,-2170.56,0.00016986,2]
[396596706,1765065075970,-500.0,0.00016986,2]
[396596707,1765065075979,-1480.35,0.00016986,2]
[396596708,1765065075988,-500.0,0.00016986,2]
[396596709,1765065075998,-2298.7,0.00016986,2]
[396596710,1765065076007,-951.32,0.00016986,2]
[396596711,1765065076017,-500.0,0.00016986,2]
[396596712,1765065076027,-975.58,0.00016986,2]
[396596713,1765065076036,-500.0,0.00016986,2]
[396596714,1765065076045,-865.35,0.00016986,2]
[396596715,1765065076053,-1214.15,0.00016986,2]
[396596716,1765065076062,-1897.2,0.00016986,2]
[396596717,1765065076072,-500.0,0.00016986,2]
[396596718,1765065076081,-2229.31,0.00016986,2]
[396596719,1765065076090,-500.0,0.00016986,2]
[396596720,1765065076099,-500.0,0.00016986,2]
[396596721,1765065076108,-151.0,0.00016986,2]
[396596722,1765065076118,-1611.79,0.00016986,2]
[396596723,1765065076127,-500.0,0.00016986,2]
[396596724,1765065076136,-151.0,0.00016986,2]
[396596725,1765065076146,-2092.97,0.00016986,2]
[396596726,1765065076155,-3142.99,0.00016986,2]
[396596727,1765065076165,-2106.01,0.00016986,2]
[396596728,1765065076174,-500.0,0.00016986,2]
[396596729,1765065076183,-151.0,0.00016986,2]
[396596730,1765065076192,-151.0,0.00016986,2]
[396596731,1765065076201,-156.784236,0.00016986,2]
[396596732,1765065076211,-256.614,0.00016986,2]
[396596733,1765065076220,-500.0,0.00016986,2]
[396596734,1765065076230,-500.0,0.00016986,2]
[396596735,1765065076240,-500.0,0.00016986,2]
[396596736,1765065076249,-281.43883916,0.00016986,2]
[396596737,1765065076259,-1423.16,0.00016986,2]
[396596738,1765065076268,-1915.73,0.00016986,2]
[396596739,1765065076279,-500.0,0.00016986,2]
[396596740,1765065076289,-500.0,0.00016986,2]
[396596741,1765065076299,-510.37,0.00016986,2]
[396596742,1765065076309,-965.85,0.00016986,2]
[396596743,1765065076319,-500.0,0.00016986,2]
[396596744,1765065076328,-676.8,0.00016986,2]
[396596745,1765065076339,-4472.49,0.00016986,2]
[396596746,1765065076348,-537.6845,0.00016986,2]
[396596747,1765065076358,-206.40043606,0.0001699,2]
[396596748,1765065076367,-204.03,0.00016992,2]
[396596749,1765065076377,-364.86789672,0.00016994,2]
[396596750,1765065076387,-301.55735151,0.00016999,2]
[396596751,1765065076395,-300.0,0.00016999,2]
[396596752,1765065076406,-300.0,0.00016999,2]
[396596753,1765065076415,-624.02,0.00016999,2]
[396596754,1765065076424,-624.02,0.00016999,2]
[396596755,1765065076433,-624.02,0.00016999,2]
[396596756,1765065076443,-624.02,0.00016999,2]
[396596757,1765065076451,-624.02,0.00016999,2]
[396596758,1765065076460,-624.02,0.00016999,2]
[396596759,1765065076470,-624.02,0.00016999,2]
[396596760,1765065076479,-624.02,0.00016999,2]
[396596761,1765065076489,-624.02,0.00016999,2]
[396596762,1765065076498,-624.03,0.00016999,2]
[396596763,1765065076508,-4068669.87128225,0.00017,2]
[396596764,1765065076518,-160.0,0.00017,2]
[396596765,1765065076528,-425.01,0.00017,7]
[396596766,1765065076538,-2526613.03238092,0.00017,2]
[396596767,1765065076549,-703.23,0.00017,2]
[396596768,1765065076558,-151.0,0.00017,2]
[396596769,1765065076567,-151.0,0.00017,2]
[396596770,1765065076577,-151.0,0.00017,2]
[396596771,1765065076587,-151.0,0.00017,2]
[396596772,1765065076597,-250.0,0.00017,2]
[396596773,1765065076609,-151.0,0.00017,2]
[396596774,1765065076618,-151.0,0.00017,2]
[396596775,1765065076629,-236.54413,0.00017,2]
[396596776,1765065076638,-236.54413,0.00017,2]
[396596777,1765065076648,-236.54413,0.00017,2]
[396596778,1765065076657,-236.54413,0.00017,2]
[396596779,1765065076666,-151.0,0.00017,2]
[396596780,1765065076680,-274.873322,0.00017,2]
[396596781,1765065076691,-274.873322,0.00017,2]
[396596782,1765065076699,-274.873322,0.00017,2]
[396596783,1765065076710,-274.87331599,0.00017,2]
[396596784,1765065076719,-240.442441,0.00017,2]
[396596785,1765065076729,-151.0,0.00017,2]
[396596786,1765065076738,-151.0,0.00017,2]
[396596787,1765065076750,-151.0,0.00017,2]
[396596788,1765065076761,-151.0,0.00017,2]
[396596789,1765065076771,-151.0,0.00017,2]
[396596790,1765065076780,-985.782157,0.00017,2]
[396596791,1765065076788,-985.782157,0.00017,2]
[396596792,1765065076797,-985.782157,0.00017,2]
[396596793,1765065076808,-985.782152,0.00017,2]
[396596794,1765065076817,-151.0,0.00017,2]
[396596795,1765065076826,-151.0,0.00017,2]
[396596796,1765065076835,-151.0,0.00017,2]
[396596797,1765065076844,-165.544672,0.00017,2]
[396596798,1765065076853,-165.544672,0.00017,2]
[396596799,1765065076862,-165.544672,0.00017,2]
[396596800,1765065076871,-165.544679,0.00017,2]
[396596801,1765065076880,-151.0,0.00017,2]
[396596802,1765065076889,-151.0,0.00017,2]
[396596803,1765065076898,-151.0,0.00017,2]
[396596804,1765065076907,-151.0,0.00017,2]
[396596805,1765065076916,-202.584472,0.00017,2]
[396596806,1765065076925,-151.0,0.00017,2]
[396596807,1765065076934,-151.0,0.00017,2]
[396596808,1765065076943,-151.0,0.00017,2]
[396596809,1765065076952,-221.701919,0.00017,2]
[396596810,1765065076961,-221.701919,0.00017,2]
[396596811,1765065076970,-221.701919,0.00017,2]
[396596812,1765065076979,-221.701921,0.00017,2]
[396596813,1765065076988,-199.866157,0.00017,2]
[396596814,1765065076997,-199.866157,0.00017,2]
[396596815,1765065077006,-199.866157,0.00017,2]
[396596816,1765065077015,-199.866149,0.00017,2]
[396596817,1765065077024,-330.793777,0.00017,2]
[396596818,1765065077034,-151.0,0.00017,2]
[396596819,1765065077043,-330.793777,0.00017,2]
[396596820,1765065077053,-330.793777,0.00017,2]
[396596821,1765065077062,-240.572356,0.00017,2]
[396596822,1765065077076,-330.793785,0.00017,2]
[396596823,1765065077085,-240.572356,0.00017,2]
[396596824,1765065077094,-240.572356,0.00017,2]
[396596825,1765065077104,-240.572366,0.00017,2]
[396596826,1765065077113,-151.0,0.00017,2]
[396596827,1765065077123,-151.0,0.00017,2]
[396596828,1765065077133,-151.0,0.00017,2]
[396596829,1765065077142,-151.0,0.00017,2]
[396596830,1765065077151,-354.0,0.00017005,2]
[396596831,1765065077160,-198.05136594,0.00017007,2]
[396596832,1765065077169,-354.0,0.00017041,2]
[396596833,1765065077178,-500.0,0.00017058,2]
[396596834,1765065077187,-250.0,0.00017058,2]
[396596835,1765065077196,-489.00131185,0.00017058,2]
[396596836,1765065077206,-6917.02042734,0.0001708,2]
[396596837,1765065077216,-5000.0,0.0001708,2]
[396596838,1765065077226,-5000.0,0.0001708,2]
[396596839,1765065077235,-5000.0,0.0001708,2]
[396596840,1765065077246,-5000.0,0.0001708,2]
[396596841,1765065077257,-1000.0,0.0001708,2]
[396596842,1765065077266,-600.0,0.00017095,2]
[396596843,1765065077276,-193.0,0.00017097,2]
[396596844,1765065077286,-1000.0,0.000171,2]
[396596845,1765065077296,-162.1882173,0.000171,2]
[396596846,1765065077305,-956.34972234,0.00017119,2]
[396596847,1765065077314,-500.0,0.00017123,2]
[396596848,1765065077324,-193.0,0.00017138,2]
[396596849,1765065077335,-162.79,0.00017141,2]
[396596850,1765065077346,-594.15409782,0.00017188,2]
[396596851,1765065077356,-500.0,0.00017195,2]
[396596852,1765065077366,-198.05136594,0.00017199,2]
[396596853,1765065077375,-972.0,0.000172,2]
[396596854,1765065077384,-304.0,0.000172,2]
[396596855,1765065077393,-208.0,0.000172,2]
[396596856,1765065077402,-154.0,0.0001723,2]
[396596857,1765065077411,-587.0,0.0001723,2]
[396596858,1765065077420,-198.05136594,0.00017231,2]
[396596859,1765065077430,-300.0,0.00017259,2]
[396596860,1765065077440,-300.0,0.00017259,2]
[396596861,1765065077450,-500.0,0.0001726,2]
[396596862,1765065077459,-25000.0,0.0001726,3]
[396596863,1765065077468,-25000.0,0.0001726,3]
[396596864,1765065077478,-25000.0,0.0001726,3]
[396596865,1765065077487,-500.0,0.0001726,2]
[396596866,1765065077497,-500.0,0.0001726,2]
[396596867,1765065077506,-500.0,0.0001726,2]
[396596868,1765065077514,-500.0,0.0001726,2]
[396596869,1765065077524,-500.0,0.0001726,2]
[396596870,1765065077533,-1861.69,0.0001726,2]
[396596871,1765065077543,-500.0,0.0001726,2]
[396596872,1765065077552,-500.0,0.0001726,2]
[396596873,1765065077561,-500.0,0.0001726,2]
[396596874,1765065077570,-500.0,0.0001726,2]
[396596875,1765065077579,-500.0,0.0001726,2]
[396596876,1765065077588,-500.0,0.0001726,2]
[396596877,1765065077598,-2057.97,0.0001726,2]
[396596878,1765065077607,-500.0,0.0001726,2]
[396596879,1765065077616,-500.0,0.0001726,2]
[396596880,1765065077625,-500.0,0.0001726,2]
[396596881,1765065077634,-2161.94,0.0001726,2]
[396596882,1765065077642,-500.0,0.0001726,2]
[396596883,1765065077651,-2039.18,0.0001726,2]
[396596884,1765065077663,-500.0,0.0001726,2]
[396596885,1765065077673,-500.0,0.0001726,2]
[396596886,1765065077686,-500.0,0.0001726,2]
[396596887,1765065077695,-550.03,0.0001726,2]
[396596888,1765065077704,-500.0,0.0001726,2]
[396596889,1765065077713,-2162.27,0.0001726,2]
[396596890,1765065077723,-1761.71,0.0001726,2]
[396596891,1765065077732,-500.0,0.0001726,2]
[396596892,1765065077741,-500.0,0.0001726,2]
[396596893,1765065077751,-500.0,0.0001726,2]
[396596894,1765065077763,-2125.61,0.0001726,2]
[396596895,1765065077772,-25000.0,0.0001726,3]
[396596896,1765065077781,-500.0,0.0001726,2]
[396596897,1765065077790,-500.0,0.0001726,2]
[396596898,1765065077800,-2416.18,0.0001726,2]
[396596899,1765065077809,-500.0,0.0001726,2]
[396596900,1765065077818,-500.0,0.0001726,2]
[396596901,1765065077828,-500.0,0.0001726,2]
[396596902,1765065077837,-500.0,0.0001726,2]
[396596903,1765065077847,-505.5054873,0.0001726,2]
[396596904,1765065077857,-2356.57,0.0001726,2]
[396596905,1765065077866,-500.0,0.0001726,2]
[396596906,1765065077876,-2016.55,0.0001726,2]
[396596907,1765065077886,-500.0,0.0001726,2]
[396596908,1765065077895,-500.0,0.0001726,2]
[396596909,1765065077904,-500.0,0.0001726,2]
[396596910,1765065077914,-500.0,0.0001726,2]
[396596911,1765065077923,-500.0,0.0001726,2]
[396596912,1765065077932,-515.76,0.0001726,2]
[396596913,1765065077942,-500.0,0.0001726,2]
[396596914,1765065077951,-500.0,0.0001726,2]
[396596915,1765065077960,-500.0,0.0001726,2]
[396596916,1765065077970,-500.0,0.0001726,2]
[396596917,1765065077980,-2310.29,0.0001726,2]
[396596918,1765065077990,-500.0,0.0001726,2]
[396596919,1765065077998,-500.0,0.0001726,2]
[396596920,1765065078007,-500.0,0.0001726,2]
[396596921,1765065078017,-500.0,0.0001726,2]
[396596922,1765065078027,-553.37,0.0001726,2]
[396596923,1765065078037,-500.0,0.0001726,2]
[396596924,1765065078046,-500.0,0.0001726,2]
[396596925,1765065078056,-500.0,0.0001726,2]
[396596926,1765065078065,-500.0,0.0001726,2]
[396596927,1765065078075,-500.0,0.0001726,2]
[396596928,1765065078084,-500.0,0.0001726,2]
[396596929,1765065078094,-1700.08,0.0001726,2]
[396596930,1765065078103,-500.0,0.0001726,2]
[396596931,1765065078112,-500.0,0.0001726,2]
[396596932,1765065078121,-803.67,0.0001726,2]
[396596933,1765065078130,-500.0,0.0001726,2]
[396596934,1765065078139,-500.0,0.0001726,2]
[396596935,1765065078148,-2249.5,0.0001726,2]
[396596936,1765065078158,-500.0,0.0001726,2]
[396596937,1765065078166,-500.0,0.0001726,2]
[396596938,1765065078176,-797.7,0.0001726,2]
[396596939,1765065078186,-500.0,0.0001726,2]
[396596940,1765065078196,-500.0,0.0001726,2]
[396596941,1765065078205,-500.0,0.0001726,2]
[396596942,1765065078214,-557.33,0.0001726,2]
[396596943,1765065078223,-500.0,0.0001726,2]
[396596944,1765065078231,-500.0,0.0001726,2]
[396596945,1765065078240,-500.0,0.0001726,2]
[396596946,1765065078249,-500.0,0.0001726,2]
[396596947,1765065078258,-802.36,0.0001726,2]
[396596948,1765065078268,-1994.56,0.0001726,2]
[396596949,1765065078278,-500.0,0.0001726,2]
[396596950,1765065078288,-500.0,0.0001726,2]
[396596951,1765065078298,-2336.73,0.0001726,2]
[396596952,1765065078308,-2191.97,0.0001726,2]
[396596953,1765065078317,-500.0,0.0001726,2]
[396596954,1765065078327,-500.0,0.0001726,2]
[396596955,1765065078336,-500.0,0.0001726,2]
[396596956,1765065078346,-216.72860813,0.0001726,2]
[396596957,1765065078356,-500.0,0.0001726,2]
[396596958,1765065078366,-500.0,0.0001726,2]
[396596959,1765065078376,-500.0,0.0001726,2]
[396596960,1765065078386,-500.0,0.0001726,2]
[396596961,1765065078396,-1612.61,0.0001726,2]
[396596962,1765065078407,-500.0,0.0001726,2]
[396596963,1765065078416,-500.0,0.0001726,2]
[396596964,1765065078426,-500.0,0.0001726,2]
[396596965,1765065078436,-500.0,0.0001726,2]
[396596966,1765065078446,-500.0,0.0001726,2]
[396596967,1765065078456,-2027.37,0.0001726,2]
[396596968,1765065078467,-500.0,0.0001726,2]
[396596969,1765065078476,-500.0,0.0001726,2]
[396596970,1765065078486,-500.0,0.0001726,2]
[396596971,1765065078495,-500.0,0.0001726,2]
[396596972,1765065078505,-500.0,0.0001726,2]
[396596973,1765065078514,-500.0,0.0001726,2]
[396596974,1765065078524,-500.0,0.0001726,2]
[396596975,1765065078533,-500.0,0.0001726,2]
[396596976,1765065078543,-500.0,0.0001726,2]
[396596977,1765065078552,-500.0,0.0001726,2]
[396596978,1765065078562,-500.0,0.0001726,2]
[396596979,1765065078572,-500.0,0.0001726,2]
[396596980,1765065078582,-500.0,0.0001726,2]
[396596981,1765065078591,-500.0,0.0001726,2]
[396596982,1765065078601,-537.56,0.0001726,2]
[396596983,1765065078611,-500.0,0.0001726,2]
[396596984,1765065078621,-2030.02,0.0001726,2]
[396596985,1765065078631,-500.0,0.0001726,2]
[396596986,1765065078641,-913.31,0.0001726,2]
[396596987,1765065078650,-500.0,0.0001726,2]
[396596988,1765065078660,-500.0,0.0001726,2]
[396596989,1765065078669,-500.0,0.0001726,2]
[396596990,1765065078683,-750.11,0.0001726,2]
[396596991,1765065078693,-500.0,0.0001726,2]
[396596992,1765065078703,-500.0,0.0001726,2]
[396596993,1765065078712,-500.0,0.0001726,2]
[396596994,1765065078722,-1789.91,0.0001726,2]
[396596995,1765065078732,-781.21,0.0001726,2]
[396596996,1765065078741,-500.0,0.0001726,2]
[396596997,1765065078751,-500.0,0.0001726,2]
[396596998,1765065078760,-2720.5,0.0001726,2]
[396596999,1765065078770,-500.0,0.0001726,2]
[396597000,1765065078780,-500.0,0.0001726,2]
[396597001,1765065078790,-675.96,0.0001726,2]
[396597002,1765065078800,-500.0,0.0001726,2]
[396597003,1765065078809,-514.89,0.0001726,2]
[396597004,1765065078818,-500.0,0.0001726,2]
[396597005,1765065078829,-500.0,0.0001726,2]
[396597006,1765065078839,-500.0,0.0001726,2]
[396597007,1765065078848,-2308.2,0.0001726,2]
[396597008,1765065078858,-1002.83,0.0001726,2]
[396597009,1765065078867,-500.0,0.0001726,2]
[396597010,1765065078878,-1878.33,0.0001726,2]
[396597011,1765065078887,-1973.13,0.0001726,2]
[396597012,1765065078897,-500.0,0.0001726,2]
[396597013,1765065078906,-500.0,0.0001726,2]
[396597014,1765065078916,-500.0,0.0001726,2]
[396597015,1765065078925,-823.65,0.0001726,2]
[396597016,1765065078938,-500.0,0.0001726,2]
[396597017,1765065078948,-500.0,0.0001726,2]
[396597018,1765065078958,-429.12580715,0.0001726,2]
[396597019,1765065078968,-500.0,0.0001726,2]
[396597020,1765065078979,-500.0,0.0001726,2]
[396597021,1765065078989,-569.55,0.0001726,2]
[396597022,1765065078999,-500.0,0.0001726,2]
[396597023,1765065079008,-672.04,0.0001726,2]
[396597024,1765065079017,-516.8966586,0.0001726,2]
[396597025,1765065079027,-300.0,0.0001726,2]
[396597026,1765065079037,-1935.84,0.0001726,2]
[396597027,1765065079047,-500.0,0.0001726,2]
[396597028,1765065079057,-670.39,0.0001726,2]
[396597029,1765065079066,-500.0,0.0001726,2]
[396597030,1765065079081,-500.0,0.0001726,2]
[396597031,1765065079097,-500.0,0.0001726,2]
[396597032,1765065079106,-500.0,0.0001726,2]
[396597033,1765065079116,-500.0,0.0001726,2]
[396597034,1765065079126,-1843.85,0.0001726,2]
[396597035,1765065079136,-2386.35,0.0001726,2]
[396597036,1765065079146,-500.0,0.0001726,2]
[396597037,1765065079156,-500.0,0.0001726,2]
[396597038,1765065079165,-500.0,0.0001726,2]
[396597039,1765065079175,-500.0,0.0001726,2]
[396597040,1765065079186,-1942.49,0.0001726,2]
[396597041,1765065079196,-516.43,0.0001726,2]
[396597042,1765065079207,-2496.6,0.0001726,2]
[396597043,1765065079217,-4215.91,0.0001726,2]
[396597044,1765065079226,-403.22405156,0.0001726,2]
[396597045,1765065079236,-2419.53,0.0001726,2]
[396597046,1765065079245,-500.0,0.0001726,2]
[396597047,1765065079255,-566.2751355,0.0001726,2]
[396597048,1765065079264,-500.0,0.0001726,2]
[396597049,1765065079274,-2351.15,0.0001726,2]
[396597050,1765065079283,-610.17,0.0001726,2]
[396597051,1765065079295,-578.23,0.0001726,2]
[396597052,1765065079305,-542.66631691,0.0001726,2]
[396597053,1765065079315,-500.0,0.0001726,2]
[396597054,1765065079324,-500.0,0.0001726,2]
[396597055,1765065079333,-2031.41,0.0001726,2]
[396597056,1765065079343,-505.59,0.0001726,2]
[396597057,1765065079352,-500.0,0.0001726,2]
[396597058,1765065079361,-500.0,0.0001726,2]
[396597059,1765065079371,-500.0,0.0001726,2]
[396597060,1765065079381,-280.8035482,0.0001726,2]
[396597061,1765065079391,-500.0,0.0001726,2]
[396597062,1765065079400,-684.97,0.0001726,2]
[396597063,1765065079410,-187.49688003,0.0001726,2]
[396597064,1765065079419,-617.85586063,0.0001726,2]
[396597065,1765065079429,-500.0,0.0001726,2]
[396597066,1765065079439,-1027.61,0.0001726,2]
[396597067,1765065079448,-500.0,0.0001726,2]
[396597068,1765065079458,-1925.47,0.0001726,2]
[396597069,1765065079468,-500.0,0.0001726,2]
[396597070,1765065079478,-500.0,0.0001726,2]
[396597071,1765065079488,-1017.31,0.0001726,2]
[396597072,1765065079498,-538.85,0.0001726,2]
[396597073,1765065079507,-500.0,0.0001726,2]
[396597074,1765065079517,-500.0,0.0001726,2]
[396597075,1765065079526,-500.0,0.0001726,2]
[396597076,1765065079536,-1817.28,0.0001726,2]
[396597077,1765065079546,-500.0,0.0001726,2]
[396597078,1765065079556,-510.66,0.0001726,2]
[396597079,1765065079565,-500.0,0.0001726,2]
[396597080,1765065079575,-500.0,0.0001726,2]
[396597081,1765065079585,-597.44,0.0001726,2]
[396597082,1765065079594,-500.0,0.0001726,2]
[396597083,1765065079605,-541.16,0.0001726,2]
[396597084,1765065079614,-500.0,0.0001726,2]
[396597085,1765065079624,-184.1,0.0001726,2]
[396597086,1765065079634,-443.57907919,0.0001726,2]
[396597087,1765065079650,-1839.25,0.0001726,2]
[396597088,1765065079668,-500.0,0.0001726,2]
[396597089,1765065079678,-500.0,0.0001726,2]
[396597090,1765065079691,-2127.53,0.0001726,2]
[396597091,1765065079701,-480.75561084,0.0001726,2]
[396597092,1765065079710,-2705.8,0.0001726,2]
[396597093,1765065079720,-2233.77,0.0001726,2]
[396597094,1765065079730,-500.0,0.0001726,2]
[396597095,1765065079741,-1509.87,0.0001726,2]
[396597096,1765065079751,-500.0,0.0001726,2]
[396597097,1765065079762,-2103.4,0.0001726,2]
[396597098,1765065079772,-500.0,0.0001726,2]
[396597099,1765065079781,-500.0,0.0001726,2]
[396597100,1765065079791,-1094.13,0.0001726,2]
[396597101,1765065079800,-547.56213074,0.0001726,2]
[396597102,1765065079810,-500.0,0.0001726,2]
[396597103,1765065079821,-500.0,0.0001726,2]
[396597104,1765065079832,-482.75373432,0.0001726,2]
[396597105,1765065079842,-500.0,0.0001726,2]
[396597106,1765065079852,-500.0,0.0001726,2]
[396597107,1765065079863,-2198.18,0.0001726,2]
[396597108,1765065079873,-793.75,0.0001726,2]
[396597109,1765065079884,-500.0,0.0001726,2]
[396597110,1765065079895,-544.25,0.0001726,2]
[396597111,1765065079904,-654.89,0.0001726,2]
[396597112,1765065079914,-500.0,0.0001726,2]
[396597113,1765065079924,-2052.9,0.0001726,2]
[396597114,1765065079934,-500.0,0.0001726,2]
[396597115,1765065079943,-500.0,0.0001726,2]